[Event "Late-Titled-Tuesday-Blitz-March-19-2024"]
[Site "Chess.com"]
[Date "2024.03.19"]
[Round "7"]
[White "GoltsevDmitry2000"]
[Black "moro182"]
[Result "1-0"]
[WhiteElo "2774"]
[BlackElo "2904"]
[TimeControl "180+1"]
[EndTime "15:18:26 PDT"]
[Termination "GoltsevDmitry2000 won on time"]

1. e4 {[%clk 0:02:59.1]} 1... g6 {[%clk 0:03:00.9]} 2. h4 {[%clk 0:02:59.1]}
2... Bg7 {[%clk 0:03:01.8]} 3. h5 {[%clk 0:02:59.8]} 3... d5 {[%clk 0:03:01.1]}
4. exd5 {[%clk 0:02:59.5]} 4... Qxd5 {[%clk 0:03:02]} 5. Nc3 {[%clk 0:03:00.2]}
5... Qe5+ {[%clk 0:03:01.2]} 6. Qe2 {[%clk 0:03:00]} 6... Nc6 {[%clk 0:02:55.9]}
7. Nf3 {[%clk 0:02:58.7]} 7... Qxe2+ {[%clk 0:02:52.6]} 8. Bxe2 {[%clk
0:02:59.6]} 8... Bg4 {[%clk 0:02:52.6]} 9. hxg6 {[%clk 0:02:58.1]} 9... hxg6
{[%clk 0:02:53.5]} 10. Rxh8 {[%clk 0:02:58.6]} 10... Bxh8 {[%clk 0:02:54.4]} 11.
d3 {[%clk 0:02:59]} 11... O-O-O {[%clk 0:02:53.6]} 12. Be3 {[%clk 0:02:58.6]}
12... Bg7 {[%clk 0:02:43.2]} 13. O-O-O {[%clk 0:02:58]} 13... Nh6 {[%clk
0:02:41.1]} 14. Rh1 {[%clk 0:02:48.2]} 14... Nf5 {[%clk 0:02:39.5]} 15. Bd2
{[%clk 0:02:47]} 15... Rh8 {[%clk 0:02:27.1]} 16. Rxh8+ {[%clk 0:02:45.1]} 16...
Bxh8 {[%clk 0:02:28]} 17. Ng5 {[%clk 0:02:43.8]} 17... Bxe2 {[%clk 0:02:06.6]}
18. Nxe2 {[%clk 0:02:44.7]} 18... Nd8 {[%clk 0:02:06.9]} 19. Bc3 {[%clk
0:02:36.7]} 19... Bxc3 {[%clk 0:02:06.2]} 20. Nxc3 {[%clk 0:02:37.6]} 20... Kd7
{[%clk 0:02:06.2]} 21. Kd2 {[%clk 0:02:33.3]} 21... b6 {[%clk 0:02:06.4]} 22. g4
{[%clk 0:02:28.1]} 22... Nd4 {[%clk 0:02:02.8]} 23. Nce4 {[%clk 0:02:18.8]}
23... f6 {[%clk 0:02:00.6]} 24. c3 {[%clk 0:02:17.5]} 24... N4c6 {[%clk
0:01:59.7]} 25. Nf3 {[%clk 0:02:14]} 25... Nf7 {[%clk 0:01:59.9]} 26. d4 {[%clk
0:02:09.5]} 26... g5 {[%clk 0:01:49.1]} 27. Ne1 {[%clk 0:02:01]} 27... Ncd8
{[%clk 0:01:48]} 28. f3 {[%clk 0:02:00]} 28... Ne6 {[%clk 0:01:47.2]} 29. Nd3
{[%clk 0:02:00.3]} 29... c6 {[%clk 0:01:47.7]} 30. Ke3 {[%clk 0:01:58.6]} 30...
Nd6 {[%clk 0:01:46.3]} 31. b3 {[%clk 0:01:53.5]} 31... Nb5 {[%clk 0:01:42.2]}
32. a4 {[%clk 0:01:49.8]} 32... Nbc7 {[%clk 0:01:42.3]} 33. c4 {[%clk
0:01:46.8]} 33... a5 {[%clk 0:01:33.8]} 34. Nc3 {[%clk 0:01:40]} 34... c5 {[%clk
0:01:26.9]} 35. dxc5 {[%clk 0:01:14]} 35... bxc5 {[%clk 0:01:26.8]} 36. Nd5
{[%clk 0:01:07.9]} 36... Kd6 {[%clk 0:01:14.6]} 37. Nb6 {[%clk 0:00:58.2]} 37...
Na6 {[%clk 0:00:53.8]} 38. Nc8+ {[%clk 0:00:31.6]} 38... Kd7 {[%clk 0:00:53.3]}
39. Nb6+ {[%clk 0:00:31.9]} 39... Kc7 {[%clk 0:00:53]} 40. Nd5+ {[%clk 0:00:31]}
40... Kd6 {[%clk 0:00:53.4]} 41. Nf2 {[%clk 0:00:30.5]} 41... Nac7 {[%clk
0:00:18.6]} 42. Ne4+ {[%clk 0:00:30]} 42... Kd7 {[%clk 0:00:18.3]} 43. Ndc3
{[%clk 0:00:22.5]} 43... Kc6 {[%clk 0:00:14.3]} 44. Ne2 {[%clk 0:00:22.9]} 44...
Ne8 {[%clk 0:00:10.5]} 45. N4c3 {[%clk 0:00:22.8]} 45... N8c7 {[%clk 0:00:07.8]}
46. Ng3 {[%clk 0:00:17.9]} 46... Nd4 {[%clk 0:00:06.8]} 47. Nf5 {[%clk
0:00:18.4]} 47... Nxf5+ {[%clk 0:00:05.2]} 48. gxf5 {[%clk 0:00:19.3]} 48... Ne8
{[%clk 0:00:03.1]} 49. Nd5 {[%clk 0:00:18.1]} 49... Kd7 {[%clk 0:00:03.3]} 50.
Nb6+ {[%clk 0:00:09.2]} 50... Kc7 {[%clk 0:00:03]} 51. Nd5+ {[%clk 0:00:09.4]}
51... Kd8 {[%clk 0:00:03.7]} 52. f4 {[%clk 0:00:08.6]} 52... g4 {[%clk
0:00:03.4]} 53. Kf2 {[%clk 0:00:08.4]} 53... Nd6 {[%clk 0:00:04]} 54. Ne3 {[%clk
0:00:09.3]} 54... Ne4+ {[%clk 0:00:03.2]} 55. Kg2 {[%clk 0:00:09.8]} 55... g3
{[%clk 0:00:03.9]} 56. Nf1 {[%clk 0:00:05.9]} 56... Kd7 {[%clk 0:00:04.2]} 57.
Kf3 {[%clk 0:00:05.9]} 57... Nd6 {[%clk 0:00:02.7]} 58. Nxg3 {[%clk 0:00:06.5]}
58... Kc6 {[%clk 0:00:03]} 59. Kg4 {[%clk 0:00:06.1]} 59... Kd7 {[%clk
0:00:03.5]} 60. Kh5 {[%clk 0:00:06.6]} 60... Ke8 {[%clk 0:00:03.4]} 61. Kg6
{[%clk 0:00:07]} 61... Kf8 {[%clk 0:00:04]} 62. Ne2 {[%clk 0:00:07.1]} 62... Ne4
{[%clk 0:00:04.1]} 63. Nc1 {[%clk 0:00:07.1]} 63... Nd2 {[%clk 0:00:03.8]} 64.
Kh5 {[%clk 0:00:07.6]} 64... Kf7 {[%clk 0:00:03.5]} 65. Kg4 {[%clk 0:00:08.1]}
65... Ke8 {[%clk 0:00:02.6]} 66. Kg3 {[%clk 0:00:08]} 66... Ne4+ {[%clk
0:00:02.6]} 67. Kf3 {[%clk 0:00:08.1]} 67... Nd6 {[%clk 0:00:03.5]} 68. Nd3
{[%clk 0:00:07.6]} 68... Nb7 {[%clk 0:00:04.1]} 69. Ke4 {[%clk 0:00:08.2]} 69...
Kd7 {[%clk 0:00:04.7]} 70. Kd5 {[%clk 0:00:08.5]} 70... Kc7 {[%clk 0:00:05.2]}
71. Nxc5 {[%clk 0:00:08.9]} 71... Nd6 {[%clk 0:00:05.9]} 72. Ne6+ {[%clk
0:00:09]} 72... Kd7 {[%clk 0:00:05]} 73. Nd4 {[%clk 0:00:09.9]} 73... Ne8 {[%clk
0:00:04.2]} 74. c5 {[%clk 0:00:09.7]} 74... Nc7+ {[%clk 0:00:04.5]} 75. Kc4
{[%clk 0:00:10.6]} 75... Na6 {[%clk 0:00:04.2]} 76. Kb5 {[%clk 0:00:10.2]} 76...
Nb4 {[%clk 0:00:04.8]} 77. Kxa5 {[%clk 0:00:10.3]} 77... Nd3 {[%clk 0:00:05.4]}
78. Kb6 {[%clk 0:00:10.3]} 78... Nxf4 {[%clk 0:00:05.5]} 79. c6+ {[%clk
0:00:10]} 79... Kc8 {[%clk 0:00:05.6]} 80. Nb5 {[%clk 0:00:10]} 80... Nd5+
{[%clk 0:00:05.8]} 81. Kc5 {[%clk 0:00:10.4]} 81... Ne3 {[%clk 0:00:06.2]} 82.
a5 {[%clk 0:00:10.9]} 82... Nxf5 {[%clk 0:00:06]} 83. a6 {[%clk 0:00:11.4]}
83... Kb8 {[%clk 0:00:05.8]} 84. a7+ {[%clk 0:00:11.1]} 84... Ka8 {[%clk
0:00:06.1]} 85. c7 {[%clk 0:00:11.5]} 85... Nd6 {[%clk 0:00:06]} 86. Nxd6 {[%clk
0:00:11.4]} 86... exd6+ {[%clk 0:00:06.9]} 87. Kxd6 {[%clk 0:00:11.7]} 1-0

[Event "Late-Titled-Tuesday-Blitz-March-19-2024"]
[Site "Chess.com"]
[Date "2024.03.19"]
[Round "7"]
[White "Orest_Vovk"]
[Black "Alexei_Gubajdullin"]
[Result "1-0"]
[WhiteElo "2517"]
[BlackElo "2641"]
[TimeControl "180+1"]
[EndTime "15:19:29 PDT"]
[Termination "Orest_Vovk won on time"]

1. h4 {[%clk 0:02:45.8]} 1... e5 {[%clk 0:02:57.9]} 2. h5 {[%clk 0:02:46.1]}
2... h6 {[%clk 0:02:57.7]} 3. Nc3 {[%clk 0:02:45.2]} 3... d5 {[%clk 0:02:57.5]}
4. e4 {[%clk 0:02:43.9]} 4... dxe4 {[%clk 0:02:52.7]} 5. Nxe4 {[%clk 0:02:43.7]}
5... f5 {[%clk 0:02:53.1]} 6. Nc3 {[%clk 0:02:41]} 6... Nf6 {[%clk 0:02:52.8]}
7. Nf3 {[%clk 0:02:39.6]} 7... Nc6 {[%clk 0:02:49.1]} 8. Bb5 {[%clk 0:02:37.5]}
8... e4 {[%clk 0:02:46.8]} 9. Bxc6+ {[%clk 0:02:35.6]} 9... bxc6 {[%clk
0:02:46.4]} 10. Ne5 {[%clk 0:02:35.2]} 10... Qd4 {[%clk 0:02:37.6]} 11. Ng6
{[%clk 0:02:30.4]} 11... Bc5 {[%clk 0:02:37.6]} 12. Qe2 {[%clk 0:02:23.2]} 12...
Ng4 {[%clk 0:02:14.3]} 13. Nxh8 {[%clk 0:02:10.6]} 13... Ba6 {[%clk 0:02:14.1]}
14. d3 {[%clk 0:00:58.3]} 14... Qxf2+ {[%clk 0:01:16.5]} 15. Qxf2 {[%clk
0:00:56.2]} 15... Bxf2+ {[%clk 0:01:16.5]} 16. Ke2 {[%clk 0:00:52.2]} 16...
O-O-O {[%clk 0:01:15.3]} 17. Nf7 {[%clk 0:00:49]} 17... exd3+ {[%clk 0:01:15]}
18. cxd3 {[%clk 0:00:42.3]} 18... Rxd3 {[%clk 0:01:14.3]} 19. Nd1 {[%clk
0:00:12.6]} 19... Rh3+ {[%clk 0:00:20.3]} 20. Kd2 {[%clk 0:00:10]} 20... Rxh1
{[%clk 0:00:20.9]} 21. Nxf2 {[%clk 0:00:10.2]} 21... Nxf2 {[%clk 0:00:21.1]} 22.
b3 {[%clk 0:00:08.8]} 22... Ne4+ {[%clk 0:00:19.7]} 23. Ke3 {[%clk 0:00:07.9]}
23... Rg1 {[%clk 0:00:18.1]} 24. Bb2 {[%clk 0:00:06.5]} 24... Rxg2 {[%clk
0:00:18.5]} 25. Be5 {[%clk 0:00:06.3]} 25... Re2+ {[%clk 0:00:15.9]} 26. Kf4
{[%clk 0:00:06.1]} 26... Rf2+ {[%clk 0:00:16.1]} 27. Ke3 {[%clk 0:00:05.5]}
27... Rc2 {[%clk 0:00:14.2]} 28. Rd1 {[%clk 0:00:05.2]} 28... Kb7 {[%clk
0:00:13.3]} 29. Nd8+ {[%clk 0:00:03.5]} 29... Kb6 {[%clk 0:00:13.7]} 30. Ne6
{[%clk 0:00:03.2]} 30... c5 {[%clk 0:00:13.2]} 31. Bxc7+ {[%clk 0:00:02.9]}
31... Kc6 {[%clk 0:00:13.5]} 32. Bb8 {[%clk 0:00:02.3]} 32... Rc3+ {[%clk
0:00:13.1]} 33. Kf4 {[%clk 0:00:02.1]} 33... Nf6 {[%clk 0:00:10.3]} 34. Nd8+
{[%clk 0:00:02.1]} 34... Kb5 {[%clk 0:00:09.5]} 35. Kxf5 {[%clk 0:00:03]} 35...
Bc8+ {[%clk 0:00:08.9]} 36. Kg6 {[%clk 0:00:02.7]} 36... Rc2 {[%clk 0:00:09]}
37. Kxg7 {[%clk 0:00:02.6]} 37... Nxh5+ {[%clk 0:00:09.3]} 38. Kxh6 {[%clk
0:00:01.7]} 38... Bg4 {[%clk 0:00:07.4]} 39. a4+ {[%clk 0:00:02.6]} 39... Kb4
{[%clk 0:00:07.2]} 40. Rb1 {[%clk 0:00:02.7]} 40... Ka3 {[%clk 0:00:06.8]} 41.
Nc6 {[%clk 0:00:02.2]} 41... Ka2 {[%clk 0:00:06.9]} 42. Rg1 {[%clk 0:00:02.3]}
42... Be2 {[%clk 0:00:06.1]} 43. Bxa7 {[%clk 0:00:03.2]} 43... Kxb3 {[%clk
0:00:06.1]} 44. a5 {[%clk 0:00:03.1]} 44... Ka4 {[%clk 0:00:06.4]} 45. a6 {[%clk
0:00:03.5]} 45... Kb5 {[%clk 0:00:06.7]} 46. Nb8 {[%clk 0:00:03]} 46... Ra2
{[%clk 0:00:06.2]} 47. Rg6 {[%clk 0:00:03.1]} 47... Nf4 {[%clk 0:00:06.1]} 48.
Rb6+ {[%clk 0:00:03.1]} 48... Kc4 {[%clk 0:00:06.5]} 49. Nc6 {[%clk 0:00:02.8]}
49... Nd5 {[%clk 0:00:06.4]} 50. Rb8 {[%clk 0:00:02.4]} 50... Kc3 {[%clk
0:00:06.7]} 51. Rc8 {[%clk 0:00:02.5]} 51... Rxa6 {[%clk 0:00:06.4]} 52. Bxc5
{[%clk 0:00:03.1]} 52... Kd3 {[%clk 0:00:06.3]} 53. Kg5 {[%clk 0:00:02.1]} 53...
Ke4 {[%clk 0:00:05.5]} 54. Ne7 {[%clk 0:00:02.3]} 54... Nxe7 {[%clk 0:00:05.1]}
55. Bxe7 {[%clk 0:00:02.8]} 55... Ra5+ {[%clk 0:00:05.4]} 56. Kf6 {[%clk
0:00:03]} 56... Rf5+ {[%clk 0:00:05.2]} 57. Ke6 {[%clk 0:00:02.6]} 57... Re5+
{[%clk 0:00:05.5]} 58. Kd6 {[%clk 0:00:02.7]} 58... Rd5+ {[%clk 0:00:05.8]} 59.
Kc7 {[%clk 0:00:03]} 59... Bb5 {[%clk 0:00:04.8]} 60. Bd6 {[%clk 0:00:03.1]}
60... Rd4 {[%clk 0:00:04.6]} 61. Rb8 {[%clk 0:00:03.2]} 61... Rc4+ {[%clk
0:00:04.7]} 62. Kd8 {[%clk 0:00:03.6]} 62... Rd4 {[%clk 0:00:04.7]} 63. Ke7
{[%clk 0:00:03.8]} 63... Bc4 {[%clk 0:00:05.1]} 64. Rb4 {[%clk 0:00:03.9]} 64...
Bd3 {[%clk 0:00:04.7]} 65. Rb2 {[%clk 0:00:03.6]} 65... Rc4 {[%clk 0:00:04.5]}
66. Rh2 {[%clk 0:00:04]} 66... Rc2 {[%clk 0:00:04.6]} 67. Rh4+ {[%clk
0:00:04.1]} 67... Kd5 {[%clk 0:00:05]} 68. Rh5+ {[%clk 0:00:04.2]} 68... Kc6
{[%clk 0:00:04.9]} 69. Rh6 {[%clk 0:00:03.9]} 69... Re2+ {[%clk 0:00:05]} 70.
Kf8 {[%clk 0:00:04.1]} 70... Kd7 {[%clk 0:00:04.7]} 71. Ba3 {[%clk 0:00:03.9]}
71... Bc4 {[%clk 0:00:04.9]} 72. Rd6+ {[%clk 0:00:03.5]} 72... Kc7 {[%clk
0:00:05.1]} 73. Rd1 {[%clk 0:00:03.2]} 73... Rf2+ {[%clk 0:00:05.3]} 74. Kg7
{[%clk 0:00:03.5]} 74... Rg2+ {[%clk 0:00:04.8]} 75. Kf6 {[%clk 0:00:03.5]}
75... Rg3 {[%clk 0:00:04.8]} 76. Bb4 {[%clk 0:00:02.4]} 76... Rf3+ {[%clk
0:00:04.7]} 77. Ke5 {[%clk 0:00:01.8]} 77... Bb5 {[%clk 0:00:04.8]} 78. Be1
{[%clk 0:00:02.2]} 78... Re3+ {[%clk 0:00:04.5]} 79. Kf4 {[%clk 0:00:02.5]}
79... Re2 {[%clk 0:00:04.6]} 80. Rc1+ {[%clk 0:00:03.1]} 80... Kb7 {[%clk
0:00:04.7]} 81. Bg3 {[%clk 0:00:03.9]} 81... Bc6 {[%clk 0:00:04.9]} 82. Kg4
{[%clk 0:00:03.7]} 82... Re4+ {[%clk 0:00:05.1]} 83. Kf5 {[%clk 0:00:03.6]}
83... Re3 {[%clk 0:00:04.4]} 84. Be5 {[%clk 0:00:03.9]} 84... Rf3+ {[%clk
0:00:04.3]} 85. Bf4 {[%clk 0:00:04.3]} 85... Rd3 {[%clk 0:00:04.5]} 86. Rb1+
{[%clk 0:00:04.4]} 86... Kc8 {[%clk 0:00:04]} 87. Rb2 {[%clk 0:00:04.9]} 87...
Kd7 {[%clk 0:00:04.2]} 88. Ke5 {[%clk 0:00:05.1]} 88... Rd5+ {[%clk 0:00:03.7]}
89. Kf6 {[%clk 0:00:05.5]} 89... Rd4 {[%clk 0:00:03.7]} 90. Be5 {[%clk
0:00:05.7]} 90... Rd3 {[%clk 0:00:03.8]} 91. Ra2 {[%clk 0:00:05.9]} 91... Rf3+
{[%clk 0:00:04]} 92. Kg5 {[%clk 0:00:06.2]} 92... Ke6 {[%clk 0:00:04.3]} 93. Bf4
{[%clk 0:00:06.2]} 93... Rf1 {[%clk 0:00:04.4]} 94. Ra6 {[%clk 0:00:05.9]} 94...
Kd5 {[%clk 0:00:04.6]} 95. Ra5+ {[%clk 0:00:05.6]} 95... Ke4 {[%clk 0:00:04.6]}
96. Re5+ {[%clk 0:00:05.7]} 96... Kd4 {[%clk 0:00:04.9]} 97. Re7 {[%clk
0:00:04.6]} 97... Be4 {[%clk 0:00:04.5]} 98. Rd7+ {[%clk 0:00:04.2]} 98... Kc4
{[%clk 0:00:04.8]} 99. Rc7+ {[%clk 0:00:04.2]} 99... Kd3 {[%clk 0:00:04.5]} 100.
Rd7+ {[%clk 0:00:04.1]} 100... Kc4 {[%clk 0:00:04.6]} 101. Be3 {[%clk 0:00:03]}
101... Kb5 {[%clk 0:00:02.2]} 102. Rd4 {[%clk 0:00:02]} 102... Bc6 {[%clk
0:00:01.4]} 103. Rf4 {[%clk 0:00:02.9]} 103... Ka6 {[%clk 0:00:01.3]} 104. Rxf1
{[%clk 0:00:02.2]} 104... Kb7 {[%clk 0:00:01.7]} 105. Rf4 {[%clk 0:00:03.1]}
105... Kc7 {[%clk 0:00:01.6]} 106. Kf6 {[%clk 0:00:04]} 106... Kd7 {[%clk
0:00:02]} 107. Ke5 {[%clk 0:00:04.9]} 107... Bb5 {[%clk 0:00:01.7]} 108. Rf2
{[%clk 0:00:05.8]} 108... Kc6 {[%clk 0:00:02]} 109. Rd2 {[%clk 0:00:06.7]}
109... Bc4 {[%clk 0:00:02.2]} 110. Rd4 {[%clk 0:00:07.6]} 110... Kb5 {[%clk
0:00:02.2]} 111. Bf4 {[%clk 0:00:08.5]} 111... Be2 {[%clk 0:00:02.2]} 112. Be3
{[%clk 0:00:08.4]} 112... Bf3 {[%clk 0:00:02.4]} 113. Kd6 {[%clk 0:00:09]}
113... Ka5 {[%clk 0:00:02]} 114. Rf4 {[%clk 0:00:09.9]} 114... Be2 {[%clk
0:00:01.5]} 115. Kc5 {[%clk 0:00:10.2]} 115... Ka6 {[%clk 0:00:01.5]} 116. Rf8
{[%clk 0:00:10]} 116... Kb7 {[%clk 0:00:01.6]} 117. Bf4 {[%clk 0:00:10]} 117...
Ka7 {[%clk 0:00:01.6]} 118. Rf7+ {[%clk 0:00:10.2]} 118... Ka6 {[%clk
0:00:01.3]} 119. Re7 {[%clk 0:00:11.1]} 119... Bf3 {[%clk 0:00:01.3]} 120. Bd2
{[%clk 0:00:10.4]} 1-0

[Event "Late-Titled-Tuesday-Blitz-March-19-2024"]
[Site "Chess.com"]
[Date "2024.03.19"]
[Round "7"]
[White "GMKrikor"]
[Black "AlexTruskavetsky"]
[Result "1-0"]
[WhiteElo "2825"]
[BlackElo "2656"]
[TimeControl "180+1"]
[EndTime "15:19:56 PDT"]
[Termination "GMKrikor won by resignation"]

1. Nf3 {[%clk 0:03:00.9]} 1... Nf6 {[%clk 0:02:59.3]} 2. c4 {[%clk 0:02:59.6]}
2... e6 {[%clk 0:02:59.4]} 3. Nc3 {[%clk 0:02:58.8]} 3... d5 {[%clk 0:03:00]} 4.
d4 {[%clk 0:02:58.9]} 4... Be7 {[%clk 0:02:54.8]} 5. cxd5 {[%clk 0:02:58.9]}
5... exd5 {[%clk 0:02:54.9]} 6. Bf4 {[%clk 0:02:59.6]} 6... O-O {[%clk
0:02:53.7]} 7. e3 {[%clk 0:02:57.5]} 7... c6 {[%clk 0:02:54]} 8. h3 {[%clk
0:02:57.1]} 8... Bd6 {[%clk 0:02:54.3]} 9. Bxd6 {[%clk 0:02:56.3]} 9... Qxd6
{[%clk 0:02:55.2]} 10. Bd3 {[%clk 0:02:54.4]} 10... Nbd7 {[%clk 0:02:54.9]} 11.
O-O {[%clk 0:02:51.9]} 11... Re8 {[%clk 0:02:55]} 12. Qc2 {[%clk 0:02:52.1]}
12... b5 {[%clk 0:02:51.6]} 13. Rac1 {[%clk 0:02:51]} 13... Bb7 {[%clk
0:02:50.3]} 14. Ne2 {[%clk 0:02:33.4]} 14... a5 {[%clk 0:02:42.2]} 15. Nf4
{[%clk 0:02:30.6]} 15... Ne4 {[%clk 0:02:37.5]} 16. Be2 {[%clk 0:02:27]} 16...
f5 {[%clk 0:02:32.4]} 17. Nd3 {[%clk 0:02:26.1]} 17... a4 {[%clk 0:02:10.2]} 18.
Nfe5 {[%clk 0:02:21.7]} 18... Rac8 {[%clk 0:01:58.6]} 19. Nxd7 {[%clk
0:02:17.8]} 19... Qxd7 {[%clk 0:01:59.5]} 20. f3 {[%clk 0:02:14.8]} 20... Ng3
{[%clk 0:01:58]} 21. Ne5 {[%clk 0:02:07.6]} 21... Qe7 {[%clk 0:01:46.3]} 22.
Rfe1 {[%clk 0:02:03.5]} 22... c5 {[%clk 0:01:46.8]} 23. Qd2 {[%clk 0:01:55.6]}
23... c4 {[%clk 0:01:45.5]} 24. a3 {[%clk 0:01:55.5]} 24... Ba8 {[%clk
0:01:40.6]} 25. Bd1 {[%clk 0:01:49.6]} 25... Rb8 {[%clk 0:01:39]} 26. Bc2 {[%clk
0:01:43.3]} 26... Rf8 {[%clk 0:01:24.1]} 27. Qf2 {[%clk 0:01:43.2]} 27... Nh5
{[%clk 0:01:24]} 28. g4 {[%clk 0:01:34.6]} 28... fxg4 {[%clk 0:01:23.3]} 29.
hxg4 {[%clk 0:01:35.5]} 29... Nf6 {[%clk 0:01:23.6]} 30. Qh4 {[%clk 0:01:36.1]}
30... g6 {[%clk 0:01:19.4]} 31. Re2 {[%clk 0:01:22.7]} 31... b4 {[%clk
0:01:18.6]} 32. Rh2 {[%clk 0:01:16.9]} 32... Qg7 {[%clk 0:01:16.4]} 33. Bxa4
{[%clk 0:01:08.2]} 33... bxa3 {[%clk 0:01:16.4]} 34. bxa3 {[%clk 0:01:09.1]}
34... Rb6 {[%clk 0:01:15]} 35. Bc2 {[%clk 0:01:02.6]} 35... Rfb8 {[%clk
0:01:13.2]} 36. Rf1 {[%clk 0:01:00.7]} 36... Rb2 {[%clk 0:01:09.9]} 37. a4
{[%clk 0:00:57.9]} 37... Ra2 {[%clk 0:01:08.5]} 38. Rff2 {[%clk 0:00:51]} 38...
Ra3 {[%clk 0:01:04]} 39. Qg5 {[%clk 0:00:46.2]} 39... Rf8 {[%clk 0:00:49.4]} 40.
Rh6 {[%clk 0:00:37.6]} 40... Ra1+ {[%clk 0:00:48]} 41. Kg2 {[%clk 0:00:35.6]}
41... Ra2 {[%clk 0:00:17.9]} 42. Kg3 {[%clk 0:00:35.1]} 42... Ne4+ {[%clk
0:00:15.5]} 43. Bxe4 {[%clk 0:00:25.5]} 43... Rxf2 {[%clk 0:00:15.2]} 44. Bxg6
{[%clk 0:00:20.2]} 44... R2xf3+ {[%clk 0:00:07.2]} 45. Nxf3 {[%clk 0:00:19.3]}
45... c3 {[%clk 0:00:06.6]} 46. Rxh7 {[%clk 0:00:12.9]} 46... Qxh7 {[%clk
0:00:06.7]} 47. Bxh7+ {[%clk 0:00:13]} 47... Kxh7 {[%clk 0:00:07.6]} 48. Qe7+
{[%clk 0:00:10.3]} 48... Kg8 {[%clk 0:00:07.6]} 49. Ng5 {[%clk 0:00:10.6]} 49...
Rf1 {[%clk 0:00:04.2]} 50. Qh7+ {[%clk 0:00:09.1]} 50... Kf8 {[%clk 0:00:04.4]}
51. Qd3 {[%clk 0:00:08.8]} 51... Rc1 {[%clk 0:00:03.8]} 52. Ne6+ {[%clk
0:00:08.6]} 52... Ke7 {[%clk 0:00:04]} 53. Nc7 {[%clk 0:00:08.6]} 53... c2
{[%clk 0:00:04.3]} 54. Qh7+ {[%clk 0:00:03.3]} 54... Kd8 {[%clk 0:00:04.2]} 55.
Ne6+ {[%clk 0:00:03.2]} 55... Ke8 {[%clk 0:00:04.7]} 56. Nc7+ {[%clk 0:00:02.5]}
56... Kd8 {[%clk 0:00:05]} 57. Ne6+ {[%clk 0:00:03.1]} 57... Ke8 {[%clk
0:00:05.4]} 58. Qg8+ {[%clk 0:00:02.5]} 58... Ke7 {[%clk 0:00:05.6]} 59. Qg7+
{[%clk 0:00:02.6]} 59... Kxe6 {[%clk 0:00:06]} 60. Qe5+ {[%clk 0:00:03.2]} 60...
Kd7 {[%clk 0:00:06.5]} 61. Qg7+ {[%clk 0:00:03.6]} 61... Kc6 {[%clk 0:00:07]}
62. Qf6+ {[%clk 0:00:03.7]} 62... Kb7 {[%clk 0:00:07.1]} 63. Qe7+ {[%clk
0:00:04.1]} 63... Kb6 {[%clk 0:00:07.6]} 64. Qc5+ {[%clk 0:00:04.1]} 64... Kb7
{[%clk 0:00:08.1]} 65. Qb5+ {[%clk 0:00:03.9]} 65... Kc7 {[%clk 0:00:08.5]} 66.
Qc5+ {[%clk 0:00:03.9]} 66... Bc6 {[%clk 0:00:09]} 67. Kh2 {[%clk 0:00:03.9]}
67... Kd7 {[%clk 0:00:07]} 68. g5 {[%clk 0:00:04.5]} 68... Bxa4 {[%clk
0:00:07.4]} 69. Qxd5+ {[%clk 0:00:04.3]} 69... Ke7 {[%clk 0:00:07.7]} 70. Qe5+
{[%clk 0:00:04.8]} 70... Kf7 {[%clk 0:00:08.2]} 71. Qf6+ {[%clk 0:00:05.2]}
71... Kg8 {[%clk 0:00:08.7]} 72. Qg6+ {[%clk 0:00:05.2]} 72... Kf8 {[%clk
0:00:08.8]} 73. Qf6+ {[%clk 0:00:05.7]} 73... Kg8 {[%clk 0:00:09.3]} 74. Qd8+
{[%clk 0:00:04.2]} 74... Kg7 {[%clk 0:00:09.5]} 75. Qe7+ {[%clk 0:00:03.8]}
75... Kg8 {[%clk 0:00:09.9]} 76. g6 {[%clk 0:00:03.5]} 76... Rh1+ {[%clk
0:00:09.9]} 77. Kxh1 {[%clk 0:00:02.5]} 77... c1=Q+ {[%clk 0:00:09.5]} 78. Kh2
{[%clk 0:00:02.7]} 78... Qd2+ {[%clk 0:00:09.8]} 79. Kg3 {[%clk 0:00:02.8]}
79... Qe1+ {[%clk 0:00:09.7]} 80. Kf4 {[%clk 0:00:03.4]} 80... Qf2+ {[%clk
0:00:10]} 81. Kg5 {[%clk 0:00:02.9]} 81... Qg3+ {[%clk 0:00:09.9]} 82. Kh6
{[%clk 0:00:01.8]} 82... Qh3+ {[%clk 0:00:10.1]} 83. Kg5 {[%clk 0:00:02.3]}
83... Qg3+ {[%clk 0:00:10.4]} 84. Kf6 {[%clk 0:00:01.9]} 84... Qh4+ {[%clk
0:00:10.6]} 85. Ke6 {[%clk 0:00:02.1]} 85... Bb3+ {[%clk 0:00:10.3]} 86. Kd6
{[%clk 0:00:02.8]} 86... Qg3+ {[%clk 0:00:10.5]} 87. Kc5 {[%clk 0:00:02.4]}
87... Qxg6 {[%clk 0:00:10.4]} 88. e4 {[%clk 0:00:02.3]} 88... Qg1 {[%clk
0:00:10.1]} 89. Qd8+ {[%clk 0:00:01.9]} 89... Kf7 {[%clk 0:00:10.1]} 90. Qc7+
{[%clk 0:00:02.7]} 90... Kg8 {[%clk 0:00:10.1]} 91. Qb8+ {[%clk 0:00:03.2]}
91... Kg7 {[%clk 0:00:10.5]} 92. Qxb3 {[%clk 0:00:03.9]} 92... Qc1+ {[%clk
0:00:10.8]} 93. Qc4 {[%clk 0:00:04.4]} 93... Qa3+ {[%clk 0:00:11.1]} 94. Qb4
{[%clk 0:00:04.3]} 94... Qa7+ {[%clk 0:00:11.3]} 95. Kc4 {[%clk 0:00:04.2]}
95... Qa2+ {[%clk 0:00:09.3]} 96. Qb3 {[%clk 0:00:04.3]} 96... Qe2+ {[%clk
0:00:09.6]} 97. Qd3 {[%clk 0:00:05]} 97... Qa2+ {[%clk 0:00:09.6]} 98. Kb4
{[%clk 0:00:05.4]} 98... Qb2+ {[%clk 0:00:09.5]} 99. Ka4 {[%clk 0:00:05.4]}
99... Qa2+ {[%clk 0:00:09.7]} 100. Kb5 {[%clk 0:00:06]} 100... Qb2+ {[%clk
0:00:08.9]} 101. Kc5 {[%clk 0:00:06.6]} 101... Qc1+ {[%clk 0:00:08.5]} 102. Qc4
{[%clk 0:00:06.7]} 102... Qa3+ {[%clk 0:00:08.1]} 103. Kb5 {[%clk 0:00:06.5]}
103... Qb2+ {[%clk 0:00:08.1]} 104. Kc6 {[%clk 0:00:07]} 104... Qg2 {[%clk
0:00:07.7]} 105. d5 {[%clk 0:00:06.3]} 105... Kf6 {[%clk 0:00:08.2]} 106. Qd4+
{[%clk 0:00:06.2]} 106... Kf7 {[%clk 0:00:08.7]} 107. d6 {[%clk 0:00:05.3]}
107... Qc2+ {[%clk 0:00:08.7]} 108. Kd7 {[%clk 0:00:05.8]} 108... Qg2 {[%clk
0:00:03.9]} 109. Qd5+ {[%clk 0:00:06]} 109... Kf8 {[%clk 0:00:03.9]} 110. Qf5+
{[%clk 0:00:06.1]} 110... Kg7 {[%clk 0:00:04.5]} 111. Ke7 {[%clk 0:00:06.3]}
111... Qb2 {[%clk 0:00:02.9]} 112. Qg5+ {[%clk 0:00:05.7]} 112... Kh7 {[%clk
0:00:03]} 113. e5 {[%clk 0:00:06.1]} 113... Qb7+ {[%clk 0:00:03]} 114. d7 {[%clk
0:00:05.7]} 114... Qb4+ {[%clk 0:00:03.7]} 115. Ke6 {[%clk 0:00:06]} 115... Qc4+
{[%clk 0:00:03.6]} 116. Kd6 {[%clk 0:00:05.8]} 116... Qd4+ {[%clk 0:00:03.6]}
117. Ke7 {[%clk 0:00:06.5]} 117... Qc5+ {[%clk 0:00:03.9]} 118. Ke6 {[%clk
0:00:07.2]} 118... Qc6+ {[%clk 0:00:04.2]} 119. Ke7 {[%clk 0:00:06.9]} 119...
Qc5+ {[%clk 0:00:04.7]} 120. Ke8 {[%clk 0:00:07]} 120... Qc6 {[%clk 0:00:05.1]}
121. Qf5+ {[%clk 0:00:05.5]} 121... Kg8 {[%clk 0:00:04.8]} 122. Qf6 {[%clk
0:00:04.8]} 122... Qa8+ {[%clk 0:00:03.5]} 123. d8=Q {[%clk 0:00:05]} 123... Kh7
{[%clk 0:00:03.6]} 124. Qh6+ {[%clk 0:00:04.2]} 124... Kxh6 {[%clk 0:00:03.8]}
125. Qxa8 {[%clk 0:00:04.2]} 125... Kh7 {[%clk 0:00:04.3]} 126. Qc6 {[%clk
0:00:03.8]} 126... Kg8 {[%clk 0:00:05.2]} 127. Qc5 {[%clk 0:00:03.3]} 127... Kh7
{[%clk 0:00:05.1]} 128. Qe7+ {[%clk 0:00:03.6]} 1-0